{"text_format":"3","workbook":"xlsx","n_sheets":1,"sheets":["Ponuka"],"not_rendered":{"images":1,"defined_names":20},"read":"whole","date_system":"1900"}

{"sheet":"Ponuka","index":0,"n_rows":39,"n_cols":7,"rows_kept":39,"merged":[[0,1,3,1],[0,3,0,6],[1,4,1,6],[2,4,2,6],[32,3,35,4],[36,3,36,6],[37,3,37,5],[38,3,38,5]]}
[{"$nulls":3},"NÁVRH VÝSTAVBY"]
[{"$nulls":3},"Názov spoločnosti","| Do tejto bunky zadajte ulicu spoločnosti."]
[{"$nulls":3},"Telefón","| Do tejto bunky zadajte číslo faxu a kontaktnú e-mailovú adresu."]
[{"$nulls":3},"MNOŽSTVO","POPIS","JEDNOTKOVÁ CENA","SUMA"]
[null,"ZÁKAZNÍK",null,10,"Položka 1",{"v":165,"d":"165.00 EUR"},{"$f":"IFERROR(Položky[[#This Row],[MNOŽSTVO]]*Položky[[#This Row],[JEDNOTKOVÁ CENA]], \"\")","v":{"v":1650,"d":"1,650.00 EUR"}}]
[null,"Do tejto bunky zadajte meno zákazníka.",null,21,"Položka 2",{"v":40,"d":"40.00 EUR"},{"$f":"IFERROR(Položky[[#This Row],[MNOŽSTVO]]*Položky[[#This Row],[JEDNOTKOVÁ CENA]], \"\")","v":{"v":840,"d":"840.00 EUR"}}]
[null,"Č. ODHADU",null,5,"Položka 3",{"v":10.5,"d":"10.50 EUR"},{"$f":"IFERROR(Položky[[#This Row],[MNOŽSTVO]]*Položky[[#This Row],[JEDNOTKOVÁ CENA]], \"\")","v":{"v":52.5,"d":"52.50 EUR"}}]
[null,"C-1234",null,164,"Položka 4",{"v":2.75,"d":"2.75 EUR"},{"$f":"IFERROR(Položky[[#This Row],[MNOŽSTVO]]*Položky[[#This Row],[JEDNOTKOVÁ CENA]], \"\")","v":{"v":451,"d":"451.00 EUR"}}]
[null,"DÁTUM",null,6,"Položka 5",{"v":12,"d":"12.00 EUR"},{"$f":"IFERROR(Položky[[#This Row],[MNOŽSTVO]]*Položky[[#This Row],[JEDNOTKOVÁ CENA]], \"\")","v":{"v":72,"d":"72.00 EUR"}}]
[null,{"$f":"TODAY()","v":"2018-11-15"},null,18,"Položka 6",{"v":5.5,"d":"5.50 EUR"},{"$f":"IFERROR(Položky[[#This Row],[MNOŽSTVO]]*Položky[[#This Row],[JEDNOTKOVÁ CENA]], \"\")","v":{"v":99,"d":"99.00 EUR"}}]
[null,"ADRESA",null,1,"Položka 7",{"v":25,"d":"25.00 EUR"},{"$f":"IFERROR(Položky[[#This Row],[MNOŽSTVO]]*Položky[[#This Row],[JEDNOTKOVÁ CENA]], \"\")","v":{"v":25,"d":"25.00 EUR"}}]
[null,"Do tejto bunky zadajte ulicu zákazníka.",{"$nulls":4},{"$f":"IFERROR(Položky[[#This Row],[MNOŽSTVO]]*Položky[[#This Row],[JEDNOTKOVÁ CENA]], \"\")","v":{"v":0,"d":"0.00 EUR"}}]
[null,"PSČ/MESTO/KRAJINA",{"$nulls":4},{"$f":"IFERROR(Položky[[#This Row],[MNOŽSTVO]]*Položky[[#This Row],[JEDNOTKOVÁ CENA]], \"\")","v":{"v":0,"d":"0.00 EUR"}}]
[null,"Do tejto bunky zadajte PSČ, mesto a krajinu zákazníka.",{"$nulls":4},{"$f":"IFERROR(Položky[[#This Row],[MNOŽSTVO]]*Položky[[#This Row],[JEDNOTKOVÁ CENA]], \"\")","v":{"v":0,"d":"0.00 EUR"}}]
[null,"TELEFÓN",{"$nulls":4},{"$f":"IFERROR(Položky[[#This Row],[MNOŽSTVO]]*Položky[[#This Row],[JEDNOTKOVÁ CENA]], \"\")","v":{"v":0,"d":"0.00 EUR"}}]
[null,"Do tejto bunky zadajte telefónne číslo zákazníka.",{"$nulls":4},{"$f":"IFERROR(Položky[[#This Row],[MNOŽSTVO]]*Položky[[#This Row],[JEDNOTKOVÁ CENA]], \"\")","v":{"v":0,"d":"0.00 EUR"}}]
[null,"E-MAIL:",{"$nulls":4},{"$f":"IFERROR(Položky[[#This Row],[MNOŽSTVO]]*Položky[[#This Row],[JEDNOTKOVÁ CENA]], \"\")","v":{"v":0,"d":"0.00 EUR"}}]
[null,"Do tejto bunky zadajte e-mailovú adresu zákazníka.",{"$nulls":4},{"$f":"IFERROR(Položky[[#This Row],[MNOŽSTVO]]*Položky[[#This Row],[JEDNOTKOVÁ CENA]], \"\")","v":{"v":0,"d":"0.00 EUR"}}]
[null,"PREDAJCA",{"$nulls":4},{"$f":"IFERROR(Položky[[#This Row],[MNOŽSTVO]]*Položky[[#This Row],[JEDNOTKOVÁ CENA]], \"\")","v":{"v":0,"d":"0.00 EUR"}}]
[null,"Do tejto bunky zadajte predajcu.",{"$nulls":4},{"$f":"IFERROR(Položky[[#This Row],[MNOŽSTVO]]*Položky[[#This Row],[JEDNOTKOVÁ CENA]], \"\")","v":{"v":0,"d":"0.00 EUR"}}]
[null,"PROJEKT",{"$nulls":4},{"$f":"IFERROR(Položky[[#This Row],[MNOŽSTVO]]*Položky[[#This Row],[JEDNOTKOVÁ CENA]], \"\")","v":{"v":0,"d":"0.00 EUR"}}]
[null,"Do tejto bunky zadajte názov projektu.",{"$nulls":4},{"$f":"IFERROR(Položky[[#This Row],[MNOŽSTVO]]*Položky[[#This Row],[JEDNOTKOVÁ CENA]], \"\")","v":{"v":0,"d":"0.00 EUR"}}]
[null,"VYPRACOVAL/-A:",{"$nulls":4},{"$f":"IFERROR(Položky[[#This Row],[MNOŽSTVO]]*Položky[[#This Row],[JEDNOTKOVÁ CENA]], \"\")","v":{"v":0,"d":"0.00 EUR"}}]
[null,"Do tejto bunky zadajte meno osoby, ktorá odhad vypracovala.",{"$nulls":4},{"$f":"IFERROR(Položky[[#This Row],[MNOŽSTVO]]*Položky[[#This Row],[JEDNOTKOVÁ CENA]], \"\")","v":{"v":0,"d":"0.00 EUR"}}]
[null,"PRÍJEMCA",{"$nulls":4},{"$f":"IFERROR(Položky[[#This Row],[MNOŽSTVO]]*Položky[[#This Row],[JEDNOTKOVÁ CENA]], \"\")","v":{"v":0,"d":"0.00 EUR"}}]
[null,"Do tejto bunky zadajte meno a adresu príjemcu návrhu.",{"$nulls":4},{"$f":"IFERROR(Položky[[#This Row],[MNOŽSTVO]]*Položky[[#This Row],[JEDNOTKOVÁ CENA]], \"\")","v":{"v":0,"d":"0.00 EUR"}}]
[null,"PLATOBNÉ PODMIENKY",{"$nulls":4},{"$f":"IFERROR(Položky[[#This Row],[MNOŽSTVO]]*Položky[[#This Row],[JEDNOTKOVÁ CENA]], \"\")","v":{"v":0,"d":"0.00 EUR"}}]
[null,"30 dní",{"$nulls":4},{"$f":"IFERROR(Položky[[#This Row],[MNOŽSTVO]]*Položky[[#This Row],[JEDNOTKOVÁ CENA]], \"\")","v":{"v":0,"d":"0.00 EUR"}}]
[null,"DÁTUM SPLATNOSTI",{"$nulls":4},{"$f":"IFERROR(Položky[[#This Row],[MNOŽSTVO]]*Položky[[#This Row],[JEDNOTKOVÁ CENA]], \"\")","v":{"v":0,"d":"0.00 EUR"}}]
[null,{"$f":"TODAY()+30","v":"2018-12-15"},{"$nulls":4},{"$f":"IFERROR(Položky[[#This Row],[MNOŽSTVO]]*Položky[[#This Row],[JEDNOTKOVÁ CENA]], \"\")","v":{"v":0,"d":"0.00 EUR"}}]
[{"$nulls":5},"MEDZISÚČET",{"$f":"SUBTOTAL(109,Položky[SUMA])","v":{"v":3189.5,"d":"3,189.50 EUR"}}]
[{"$nulls":3},"TENTO NÁVRH POČÍTA S UVEDENÝMI PODMIENKAMI:",null,"SADZBA DANE ",{"v":0.0775,"d":"7.75%"}]
[{"$nulls":3},"Sem zadajte podmienky",null,"DAŇ Z PREDAJA ",{"$f":"IFERROR(Medzisúčet*SadzbaDane, \"\")","v":{"v":247.18625,"d":"247.19 EUR"}}]
[{"$nulls":5},"INÉ "]
[{"$nulls":5},"CELKOVÁ HODNOTA",{"$f":"IFERROR(Medzisúčet+G33+Iné, \"\")","v":{"v":3436.68625,"d":"3,436.69 EUR"}}]
[]
[{"$nulls":3},"Svojím podpisom nižšie akceptujete túto ponuku:"]
[]
[{"$nulls":3},"Schválil/-a",null,null,"Dátum"]